[Event "FIDE Women's Grand Swiss 2023"]
[Site "Villa Marina, Douglas, Isle of Man, Isle Of Man"]
[Date "2023.11.05"]
[Round "11.15"]
[White "Injac, Teodora"]
[Black "Guichard, Pauline"]
[Result "1/2-1/2"]
[TimeControl "40/90 + 30 + 30s/move"]
[WhiteFideId "932400"]
[BlackFideId "639370"]
[WhiteElo "2426"]
[BlackElo "2358"]

1. Nf3 {[%clk 01:30:57]} {[%emt 00:00:02]} Nf6 {[%clk 01:30:48]} {[%emt
00:00:12]} 2. g3 {[%clk 01:31:17]} {[%emt 00:00:10]} d5 {[%clk 01:29:15]}
{[%emt 00:02:04]} 3. Bg2 {[%clk 01:31:33]} {[%emt 00:00:14]} e6 {[%clk
01:28:46]} {[%emt 00:01:00]} 4. O-O {[%clk 01:31:29]} {[%emt 00:00:34]} Be7
{[%clk 01:29:01]} {[%emt 00:00:14]} 5. d3 {[%clk 01:31:34]} {[%emt 00:00:25]}
O-O {[%clk 01:29:11]} {[%emt 00:00:20]} 6. a4 {[%clk 01:31:04]} {[%emt
00:01:01]} a5 {[%clk 01:24:13]} {[%emt 00:05:27]} 7. b3 {[%clk 01:30:11]}
{[%emt 00:01:23]} b6 {[%clk 01:20:49]} {[%emt 00:03:54]} 8. Bb2 {[%clk
01:29:50]} {[%emt 00:00:51]} Nc6 {[%clk 01:20:14]} {[%emt 00:01:06]} 9. e4
{[%clk 01:04:29]} {[%emt 00:25:51]} dxe4 {[%clk 01:19:17]} {[%emt 00:01:27]} 10.
Ng5 {[%clk 01:02:01]} {[%emt 00:02:58]} Bb7 {[%clk 01:09:11]} {[%emt 00:10:37]}
11. Nxe4 {[%clk 01:02:00]} {[%emt 00:00:31]} Nxe4 {[%clk 01:09:13]} {[%emt
00:00:27]} 12. Bxe4 {[%clk 01:01:40]} {[%emt 00:00:50]} Bf6 {[%clk 01:06:11]}
{[%emt 00:03:33]} 13. Bxf6 {[%clk 01:00:00]} {[%emt 00:02:10]} Qxf6 {[%clk
01:06:30]} {[%emt 00:00:11]} 14. Na3 {[%clk 01:00:26]} {[%emt 00:00:04]} Rab8
{[%clk 01:00:53]} {[%emt 00:06:07]} 15. Nb5 {[%clk 01:00:33]} {[%emt 00:00:23]}
Nd4 {[%clk 00:59:31]} {[%emt 00:01:52]} 16. Nxd4 {[%clk 00:52:49]} {[%emt
00:08:15]} Qxd4 {[%clk 00:56:31]} {[%emt 00:03:29]} 17. Bxb7 {[%clk 00:50:56]}
{[%emt 00:02:23]} Rxb7 {[%clk 00:56:56]} {[%emt 00:00:05]} 18. Qf3 {[%clk
00:51:20]} {[%emt 00:00:05]} Rbb8 {[%clk 00:56:40]} {[%emt 00:00:47]} 19. Qc6
{[%clk 00:51:00]} {[%emt 00:00:50]} Rfd8 {[%clk 00:56:13]} {[%emt 00:00:58]} 20.
Rae1 {[%clk 00:50:16]} {[%emt 00:01:14]} Qd6 {[%clk 00:53:21]} {[%emt
00:03:22]} 21. Qc4 {[%clk 00:48:58]} {[%emt 00:01:47]} Qd4 {[%clk 00:50:21]}
{[%emt 00:03:31]} 22. Qc6 {[%clk 00:42:45]} {[%emt 00:06:43]} Qd6 {[%clk
00:50:08]} {[%emt 00:00:42]} 23. Qc4 {[%clk 00:42:23]} {[%emt 00:00:53]} Qd4
{[%clk 00:49:49]} {[%emt 00:00:49]} 24. Qc6 {[%clk 00:42:28]} {[%emt 00:00:25]}
Qd6 {[%clk 00:49:58]} {[%emt 00:00:21]} 25. Qc4 {[%emt 00:00:36]} 1/2-1/2

[Event "FIDE Women's Grand Swiss 2023"]
[Site "Villa Marina, Douglas, Isle of Man, Isle Of Man"]
[Date "2023.11.05"]
[Round "11.16"]
[White "Bulmaga, Irina"]
[Black "Aulia, Medina Warda"]
[Result "1-0"]
[TimeControl "40/90 + 30 + 30s/move"]
[WhiteFideId "13903063"]
[BlackFideId "7101570"]
[WhiteElo "2423"]
[BlackElo "2362"]

1. e4 {[%clk 01:30:55]} {[%emt 00:00:03]} e5 {[%clk 01:30:54]} {[%emt
00:00:08]} 2. Nf3 {[%clk 01:31:18]} {[%emt 00:00:06]} Nc6 {[%clk 01:31:18]}
{[%emt 00:00:06]} 3. d4 {[%clk 01:31:38]} {[%emt 00:00:11]} exd4 {[%clk
01:31:38]} {[%emt 00:00:10]} 4. Nxd4 {[%clk 01:32:00]} {[%emt 00:00:06]} Bc5
{[%clk 01:31:58]} {[%emt 00:00:12]} 5. Nxc6 {[%clk 01:31:53]} {[%emt 00:00:37]}
Qf6 {[%clk 01:32:09]} {[%emt 00:00:19]} 6. Qf3 {[%clk 01:32:05]} {[%emt
00:00:17]} bxc6 {[%clk 01:32:17]} {[%emt 00:00:23]} 7. Nd2 {[%clk 01:32:08]}
{[%emt 00:00:26]} h5 {[%clk 01:31:07]} {[%emt 00:01:40]} 8. Nb3 {[%clk
01:30:17]} {[%emt 00:02:21]} Bb6 {[%clk 01:31:07]} {[%emt 00:00:31]} 9. a4
{[%clk 01:17:37]} {[%emt 00:13:10]} a5 {[%clk 01:31:32]} {[%emt 00:00:05]} 10.
Bc4 {[%clk 01:15:12]} {[%emt 00:02:54]} h4 {[%clk 01:30:53]} {[%emt 00:01:09]}
11. Bg5 {[%clk 01:12:01]} {[%emt 00:03:41]} Qg6 {[%clk 01:29:39]} {[%emt
00:01:45]} 12. Be3 {[%clk 01:09:47]} {[%emt 00:02:43]} h3 {[%clk 01:17:28]}
{[%emt 00:12:41]} 13. gxh3 {[%clk 01:06:44]} {[%emt 00:03:33]} d5 {[%clk
01:12:53]} {[%emt 00:05:06]} 14. exd5 {[%clk 00:59:12]} {[%emt 00:08:02]} Qxc2
{[%clk 01:06:59]} {[%emt 00:06:24]} 15. Rc1 {[%clk 00:48:04]} {[%emt 00:11:38]}
Qg6 {[%clk 01:07:05]} {[%emt 00:00:24]} 16. d6 {[%clk 00:42:48]} {[%emt
00:05:46]} Bd7 {[%clk 01:07:07]} {[%emt 00:00:28]} 17. dxc7 {[%clk 00:21:56]}
{[%emt 00:21:22]} Rxh3 {[%clk 01:04:58]} {[%emt 00:02:39]} 18. Qf4 {[%clk
00:20:23]} {[%emt 00:02:03]} Bxe3 {[%clk 00:58:49]} {[%emt 00:06:39]} 19. fxe3
{[%clk 00:20:44]} {[%emt 00:00:08]} Nf6 {[%clk 00:45:46]} {[%emt 00:13:34]} 20.
Rf1 {[%clk 00:18:02]} {[%emt 00:03:11]} Rh5 {[%clk 00:42:40]} {[%emt 00:03:36]}
21. Nd4 {[%clk 00:14:53]} {[%emt 00:03:39]} Rc8 {[%clk 00:36:24]} {[%emt
00:06:47]} 22. Be2 {[%clk 00:13:29]} {[%emt 00:01:54]} Rg5 {[%clk 00:33:44]}
{[%emt 00:03:11]} 23. h4 {[%clk 00:11:44]} {[%emt 00:02:14]} Rg2 {[%clk
00:31:46]} {[%emt 00:02:28]} 24. Qe5+ {[%clk 00:10:25]} {[%emt 00:01:48]} Kf8
{[%clk 00:32:14]} {[%emt 00:00:03]} 25. Qd6+ {[%clk 00:10:31]} {[%emt
00:00:23]} Ke8 {[%clk 00:32:10]} {[%emt 00:00:34]} 26. Qe5+ {[%clk 00:05:18]}
{[%emt 00:05:43]} Kf8 {[%clk 00:32:35]} {[%emt 00:00:06]} 27. Qd6+ {[%clk
00:05:44]} {[%emt 00:00:03]} Ke8 {[%clk 00:33:02]} {[%emt 00:00:04]} 28. Bf3
{[%clk 00:04:23]} {[%emt 00:01:50]} Qg3+ {[%clk 00:32:58]} {[%emt 00:00:34]} 29.
Qxg3 {[%clk 00:04:47]} {[%emt 00:00:06]} Rxg3 {[%clk 00:33:25]} {[%emt
00:00:03]} 30. Kf2 {[%clk 00:03:55]} {[%emt 00:01:22]} Rh3 {[%clk 00:33:15]}
{[%emt 00:00:41]} 31. Rh1 {[%clk 00:03:45]} {[%emt 00:00:40]} Rxh1 {[%clk
00:33:24]} {[%emt 00:00:21]} 32. Bxh1 {[%clk 00:04:12]} {[%emt 00:00:02]} Ng4+
{[%clk 00:33:12]} {[%emt 00:00:43]} 33. Ke2 {[%clk 00:04:15]} {[%emt 00:00:26]}
Ne5 {[%clk 00:33:09]} {[%emt 00:00:34]} 34. Rc5 {[%clk 00:03:18]} {[%emt
00:01:27]} f6 {[%clk 00:33:35]} {[%emt 00:00:04]} 35. Rxa5 {[%clk 00:01:55]}
{[%emt 00:01:53]} Rxc7 {[%emt 00:00:16]} 36. Rc5 {[%clk 00:02:14]} Ke7 {[%clk
00:33:32]} {[%emt 00:00:58]} 37. Kd2 {[%clk 00:02:40]} {[%emt 00:00:03]} Kd6
{[%clk 00:33:13]} {[%emt 00:00:50]} 38. b4 {[%clk 00:03:08]} {[%emt 00:00:02]}
Rb7 {[%clk 00:32:44]} {[%emt 00:00:59]} 39. Nb5+ {[%clk 00:01:02]} {[%emt
00:02:36]} Ke7 {[%clk 00:32:46]} {[%emt 00:00:28]} 40. Kc3 {[%clk 00:01:16]}
{[%emt 00:00:16]} Rb8 {[%clk 00:31:54]} {[%emt 00:01:21]} 41. Nd4 {[%clk
00:21:44]} {[%emt 00:10:03]} Kd6 {[%clk 01:02:20]} {[%emt 00:00:04]} 42. Be4
{[%clk 00:19:06]} {[%emt 00:03:07]} Rh8 {[%clk 01:02:26]} {[%emt 00:00:24]} 43.
h5 {[%clk 00:15:30]} {[%emt 00:04:06]} Rxh5 {[%clk 00:59:58]} {[%emt 00:02:59]}
44. Bxc6 {[%clk 00:14:28]} {[%emt 00:01:31]} Bxc6 {[%clk 00:59:38]} {[%emt
00:00:51]} 45. Nxc6 {[%clk 00:14:48]} {[%emt 00:00:10]} Rh3 {[%clk 01:00:05]}
{[%emt 00:00:03]} 46. Nxe5 {[%clk 00:14:43]} {[%emt 00:00:35]} fxe5 {[%clk
01:00:17]} {[%emt 00:00:18]} 47. Kd3 {[%clk 00:14:38]} {[%emt 00:00:34]} g5
{[%clk 00:58:55]} {[%emt 00:01:52]} 48. a5 {[%clk 00:14:51]} {[%emt 00:00:18]}
Rh8 {[%clk 00:58:07]} {[%emt 00:01:17]} 49. Rb5 {[%clk 00:13:51]} {[%emt
00:01:30]} Rg8 {[%clk 00:57:47]} {[%emt 00:00:51]} 50. a6 {[%clk 00:12:41]}
{[%emt 00:01:40]} g4 {[%clk 00:56:48]} {[%emt 00:01:29]} 51. a7 {[%clk
00:12:02]} {[%emt 00:01:09]} Ra8 {[%clk 00:57:04]} {[%emt 00:00:14]} 52. Ra5
{[%clk 00:12:11]} {[%emt 00:00:21]} g3 {[%clk 00:57:04]} {[%emt 00:00:29]} 53.
Ke2 {[%clk 00:12:20]} {[%emt 00:00:21]} e4 {[%clk 00:57:22]} {[%emt 00:00:13]}
54. Kf1 {[%clk 00:12:26]} {[%emt 00:00:24]} Kc7 {[%clk 00:57:26]} {[%emt
00:00:26]} 55. Kg2 {[%clk 00:12:48]} {[%emt 00:00:07]} 1-0

[Event "FIDE Women's Grand Swiss 2023"]
[Site "Villa Marina, Douglas, Isle of Man, Isle Of Man"]
[Date "2023.11.05"]
[Round "11.17"]
[White "Kosteniuk, Alexandra"]
[Black "Terbe, Julianna"]
[Result "1-0"]
[TimeControl "40/90 + 30 + 30s/move"]
[WhiteFideId "4128125"]
[BlackFideId "708780"]
[WhiteElo "2523"]
[BlackElo "2266"]

1. e4 {[%clk 01:30:55]} {[%emt 00:00:04]} c5 {[%clk 01:30:55]} {[%emt
00:00:05]} 2. Nf3 {[%clk 01:31:13]} {[%emt 00:00:13]} Nc6 {[%clk 01:31:18]}
{[%emt 00:00:07]} 3. Bb5 {[%clk 01:31:34]} {[%emt 00:00:08]} g6 {[%clk
01:31:36]} {[%emt 00:00:12]} 4. Bxc6 {[%clk 01:31:50]} {[%emt 00:00:14]} dxc6
{[%clk 01:31:57]} {[%emt 00:00:09]} 5. d3 {[%clk 01:31:56]} {[%emt 00:00:24]}
Qc7 {[%clk 01:32:15]} {[%emt 00:00:12]} 6. Be3 {[%clk 01:30:55]} {[%emt
00:01:30]} e5 {[%clk 01:32:40]} {[%emt 00:00:06]} 7. O-O {[%clk 01:31:09]}
{[%emt 00:00:16]} Nf6 {[%clk 01:32:44]} {[%emt 00:00:26]} 8. Qe1 {[%clk
01:31:21]} {[%emt 00:00:19]} Bg4 {[%clk 01:27:41]} {[%emt 00:05:33]} 9. Nbd2
{[%clk 01:31:27]} {[%emt 00:00:24]} h6 {[%clk 01:27:49]} {[%emt 00:00:22]} 10.
a3 {[%clk 01:30:17]} {[%emt 00:01:40]} b6 {[%clk 01:24:47]} {[%emt 00:03:32]}
11. Qb1 {[%clk 01:29:38]} {[%emt 00:01:09]} Bg7 {[%clk 01:25:04]} {[%emt
00:00:12]} 12. b4 {[%clk 01:28:27]} {[%emt 00:01:41]} cxb4 {[%clk 01:25:17]}
{[%emt 00:00:18]} 13. axb4 {[%clk 01:28:33]} {[%emt 00:00:24]} O-O {[%clk
01:24:15]} {[%emt 00:01:31]} 14. h3 {[%clk 01:23:39]} {[%emt 00:05:25]} Be6
{[%clk 01:18:21]} {[%emt 00:06:24]} 15. d4 {[%clk 01:22:28]} {[%emt 00:01:40]}
exd4 {[%clk 01:09:30]} {[%emt 00:09:22]} 16. Bxd4 {[%emt 00:00:54]} Rfd8 {[%clk
01:09:26]} 17. Qb2 {[%clk 01:21:06]} {[%emt 00:02:01]} Qe7 {[%clk 01:01:49]}
{[%emt 00:08:07]} 18. Rfe1 {[%clk 01:18:35]} {[%emt 00:03:02]} c5 {[%clk
00:55:53]} {[%emt 00:06:26]} 19. bxc5 {[%clk 01:16:40]} {[%emt 00:02:24]} bxc5
{[%clk 00:56:19]} {[%emt 00:00:05]} 20. Qa3 {[%clk 01:11:19]} {[%emt 00:05:51]}
Bf8 {[%clk 00:52:02]} {[%emt 00:04:47]} 21. Bb2 {[%clk 01:11:16]} {[%emt
00:00:33]} Nh5 {[%clk 00:44:15]} {[%emt 00:08:17]} 22. Qe3 {[%clk 01:08:24]}
{[%emt 00:03:22]} Rab8 {[%clk 00:31:14]} {[%emt 00:13:31]} 23. Be5 {[%clk
01:08:10]} {[%emt 00:00:44]} Rb7 {[%clk 00:29:22]} {[%emt 00:02:21]} 24. Ra6
{[%clk 01:07:14]} {[%emt 00:01:26]} Rb6 {[%clk 00:25:09]} {[%emt 00:04:44]} 25.
Ra5 {[%clk 01:07:27]} {[%emt 00:00:17]} f6 {[%clk 00:23:55]} {[%emt 00:01:45]}
26. Bc3 {[%clk 00:55:33]} {[%emt 00:12:23]} g5 {[%clk 00:22:05]} {[%emt
00:02:20]} 27. h4 {[%clk 00:55:47]} {[%emt 00:00:17]} Nf4 {[%clk 00:12:46]}
{[%emt 00:09:48]} 28. g3 {[%clk 00:51:34]} {[%emt 00:04:42]} Qg7 {[%clk
00:09:45]} {[%emt 00:03:31]} 29. Kh2 {[%clk 00:51:18]} {[%emt 00:00:46]} Nh3
{[%clk 00:09:15]} {[%emt 00:01:00]} 30. Rea1 {[%clk 00:49:16]} {[%emt
00:02:33]} Rd7 {[%clk 00:09:09]} {[%emt 00:00:36]} 31. Qe2 {[%clk 00:47:43]}
{[%emt 00:02:02]} g4 {[%clk 00:06:57]} {[%emt 00:02:42]} 32. Ne1 {[%clk
00:47:36]} {[%emt 00:00:38]} Qf7 {[%clk 00:07:01]} {[%emt 00:00:27]} 33. Nd3
{[%clk 00:47:37]} {[%emt 00:00:28]} c4 {[%clk 00:06:13]} {[%emt 00:01:19]} 34.
Nc5 {[%clk 00:47:58]} {[%emt 00:00:08]} Rc7 {[%clk 00:03:42]} {[%emt 00:03:00]}
35. Nxe6 {[%clk 00:48:12]} {[%emt 00:00:16]} Qxe6 {[%clk 00:04:08]} {[%emt
00:00:04]} 36. Rf5 {[%clk 00:48:08]} {[%emt 00:00:35]} h5 {[%clk 00:03:22]}
{[%emt 00:01:16]} 37. Rxh5 {[%clk 00:46:20]} {[%emt 00:02:18]} Rc5 {[%clk
00:03:45]} {[%emt 00:00:07]} 38. e5 {[%clk 00:34:05]} {[%emt 00:12:45]} Bd6
{[%clk 00:02:14]} {[%emt 00:02:01]} 39. Ne4 {[%clk 00:32:15]} {[%emt 00:02:20]}
Rxe5 {[%clk 00:01:56]} {[%emt 00:00:48]} 40. Nxf6+ {[%clk 00:32:06]} {[%emt
00:00:39]} 1-0

[Event "FIDE Women's Grand Swiss 2023"]
[Site "Villa Marina, Douglas, Isle of Man, Isle Of Man"]
[Date "2023.11.05"]
[Round "11.18"]
[White "Beydullayeva, Govhar"]
[Black "Roebers, Eline"]
[Result "1/2-1/2"]
[TimeControl "40/90 + 30 + 30s/move"]
[WhiteFideId "13413015"]
[BlackFideId "1058401"]
[WhiteElo "2383"]
[BlackElo "2390"]

1. Nf3 {[%clk 01:30:51]} {[%emt 00:00:08]} d5 {[%clk 01:30:56]} {[%emt
00:00:04]} 2. g3 {[%clk 01:31:06]} {[%emt 00:00:16]} g6 {[%clk 01:31:06]}
{[%emt 00:00:20]} 3. Bg2 {[%clk 01:31:29]} {[%emt 00:00:07]} Bg7 {[%clk
01:31:29]} {[%emt 00:00:06]} 4. d4 {[%clk 01:31:52]} {[%emt 00:00:07]} c6
{[%clk 01:31:40]} {[%emt 00:00:20]} 5. c4 {[%clk 01:31:07]} {[%emt 00:01:15]}
Nf6 {[%clk 01:30:49]} {[%emt 00:01:20]} 6. O-O {[%clk 01:29:40]} {[%emt
00:01:57]} O-O {[%clk 01:30:52]} {[%emt 00:00:27]} 7. b3 {[%clk 01:28:05]}
{[%emt 00:02:05]} Ne4 {[%clk 01:26:26]} {[%emt 00:04:56]} 8. Bb2 {[%clk
01:26:19]} {[%emt 00:02:16]} a5 {[%clk 01:22:22]} {[%emt 00:04:34]} 9. Nc3
{[%clk 01:20:42]} {[%emt 00:06:08]} Nxc3 {[%clk 01:13:37]} {[%emt 00:09:14]} 10.
Bxc3 {[%clk 01:20:54]} {[%emt 00:00:19]} Nd7 {[%clk 01:14:03]} {[%emt
00:00:04]} 11. Rc1 {[%clk 01:13:27]} {[%emt 00:07:57]} b6 {[%clk 01:08:24]}
{[%emt 00:06:09]} 12. Nd2 {[%clk 01:09:39]} {[%emt 00:04:17]} Nf6 {[%clk
01:06:25]} {[%emt 00:02:29]} 13. e4 {[%clk 01:09:16]} {[%emt 00:00:54]} dxe4
{[%clk 01:06:29]} {[%emt 00:00:26]} 14. Nxe4 {[%clk 01:09:43]} {[%emt
00:00:02]} Nxe4 {[%clk 01:04:32]} {[%emt 00:02:27]} 15. Bxe4 {[%clk 01:10:10]}
{[%emt 00:00:03]} Bb7 {[%clk 01:04:17]} {[%emt 00:00:45]} 16. Qf3 {[%clk
01:03:20]} {[%emt 00:07:20]} Qc7 {[%clk 00:58:43]} {[%emt 00:06:04]} 17. Qe3
{[%clk 01:02:07]} {[%emt 00:01:44]} Rfd8 {[%clk 00:57:18]} {[%emt 00:01:54]} 18.
f4 {[%clk 00:55:54]} {[%emt 00:06:43]} e6 {[%clk 00:53:52]} {[%emt 00:03:56]}
19. Rfd1 {[%clk 00:53:32]} {[%emt 00:02:52]} Rd7 {[%clk 00:51:58]} {[%emt
00:02:24]} 20. Rd2 {[%clk 00:45:54]} {[%emt 00:08:08]} Rad8 {[%clk 00:50:54]}
{[%emt 00:01:34]} 21. Rcd1 {[%clk 00:46:05]} {[%emt 00:00:20]} c5 {[%clk
00:42:33]} {[%emt 00:08:51]} 22. Bxb7 {[%clk 00:38:19]} {[%emt 00:08:16]} cxd4
{[%clk 00:42:07]} {[%emt 00:00:56]} 23. Bxd4 {[%clk 00:38:33]} {[%emt
00:00:16]} Bxd4 {[%clk 00:42:12]} {[%emt 00:00:25]} 24. Rxd4 {[%clk 00:39:02]}
{[%emt 00:00:01]} Rxd4 {[%clk 00:42:36]} {[%emt 00:00:06]} 25. Rxd4 {[%clk
00:39:29]} {[%emt 00:00:03]} Rxd4 {[%clk 00:43:01]} {[%emt 00:00:04]} 26. Qxd4
{[%clk 00:39:53]} {[%emt 00:00:06]} Qxb7 {[%clk 00:43:29]} {[%emt 00:00:03]} 27.
c5 {[%clk 00:36:10]} {[%emt 00:04:14]} bxc5 {[%clk 00:41:39]} {[%emt 00:02:19]}
28. Qxc5 {[%clk 00:29:52]} {[%emt 00:06:48]} Qa8 {[%clk 00:39:59]} {[%emt
00:02:10]} 29. a3 {[%clk 00:26:06]} {[%emt 00:04:16]} h5 {[%clk 00:39:23]}
{[%emt 00:01:06]} 30. Qd4 {[%clk 00:25:05]} {[%emt 00:01:30]} Qf3 {[%clk
00:37:18]} {[%emt 00:02:35]} 31. Qd8+ {[%clk 00:24:43]} {[%emt 00:00:52]}
1/2-1/2

[Event "FIDE Women's Grand Swiss 2023"]
[Site "Villa Marina, Douglas, Isle of Man, Isle Of Man"]
[Date "2023.11.05"]
[Round "11.19"]
[White "Shuvalova, Polina"]
[Black "Hoang, Thanh Trang"]
[Result "1/2-1/2"]
[TimeControl "40/90 + 30 + 30s/move"]
[WhiteFideId "24171760"]
[BlackFideId "12400149"]
[WhiteElo "2506"]
[BlackElo "2398"]

1. e4 {[%clk 01:30:57]} {[%emt 00:00:03]} e6 {[%clk 01:30:44]} {[%emt
00:00:16]} 2. d4 {[%clk 01:31:23]} {[%emt 00:00:04]} d5 {[%clk 01:31:06]}
{[%emt 00:00:08]} 3. Nd2 {[%clk 01:31:49]} {[%emt 00:00:05]} c5 {[%clk
01:30:37]} {[%emt 00:00:58]} 4. exd5 {[%clk 01:32:08]} {[%emt 00:00:11]} Qxd5
{[%clk 01:30:50]} {[%emt 00:00:16]} 5. Ngf3 {[%clk 01:32:33]} {[%emt 00:00:06]}
cxd4 {[%clk 01:30:42]} {[%emt 00:00:38]} 6. Bc4 {[%clk 01:32:59]} {[%emt
00:00:05]} Qd7 {[%clk 01:30:30]} {[%emt 00:00:41]} 7. O-O {[%clk 01:33:06]}
{[%emt 00:00:23]} Nc6 {[%clk 01:30:34]} {[%emt 00:00:25]} 8. Nb3 {[%clk
01:33:29]} {[%emt 00:00:08]} Nf6 {[%clk 01:30:28]} {[%emt 00:00:37]} 9. Nbxd4
{[%clk 01:33:40]} {[%emt 00:00:19]} Nxd4 {[%clk 01:30:44]} {[%emt 00:00:13]} 10.
Nxd4 {[%clk 01:34:06]} {[%emt 00:00:04]} a6 {[%clk 01:30:57]} {[%emt 00:00:17]}
11. Re1 {[%clk 01:33:13]} {[%emt 00:01:23]} b5 {[%clk 01:30:42]} {[%emt
00:00:44]} 12. Bb3 {[%clk 01:29:49]} {[%emt 00:03:56]} Bb7 {[%clk 01:30:30]}
{[%emt 00:00:41]} 13. c3 {[%clk 01:13:07]} {[%emt 00:17:12]} Be7 {[%clk
01:24:02]} {[%emt 00:06:58]} 14. Bg5 {[%clk 01:12:21]} {[%emt 00:01:16]} Bd5
{[%clk 01:06:17]} {[%emt 00:18:15]} 15. Nf5 {[%clk 01:07:05]} {[%emt 00:05:47]}
Bxb3 {[%clk 00:58:39]} {[%emt 00:08:08]} 16. Nxg7+ {[%clk 01:06:06]} {[%emt
00:01:28]} Kf8 {[%clk 00:56:48]} {[%emt 00:02:20]} 17. Qxd7 {[%clk 01:05:47]}
{[%emt 00:00:50]} Nxd7 {[%clk 00:57:10]} {[%emt 00:00:08]} 18. Bxe7+ {[%clk
01:05:53]} {[%emt 00:00:24]} Kxe7 {[%clk 00:57:26]} {[%emt 00:00:14]} 19. axb3
{[%clk 01:06:19]} {[%emt 00:00:05]} Nc5 {[%clk 00:52:02]} {[%emt 00:05:53]} 20.
Nf5+ {[%clk 01:04:10]} {[%emt 00:02:39]} Kf6 {[%clk 00:52:24]} {[%emt
00:00:08]} 21. Ng3 {[%clk 01:03:47]} {[%emt 00:00:53]} Rhd8 {[%clk 00:50:41]}
{[%emt 00:02:13]} 22. b4 {[%clk 01:03:48]} {[%emt 00:00:30]} Nd3 {[%clk
00:46:56]} {[%emt 00:04:15]} 23. Re2 {[%clk 01:03:09]} {[%emt 00:01:08]} Rd5
{[%clk 00:43:38]} {[%emt 00:03:48]} 24. Ne4+ {[%clk 01:01:18]} {[%emt
00:02:21]} Ke7 {[%clk 00:43:44]} {[%emt 00:00:24]} 25. g3 {[%clk 01:00:49]}
{[%emt 00:01:00]} h6 {[%clk 00:42:17]} {[%emt 00:01:56]} 26. f4 {[%clk
00:59:00]} {[%emt 00:02:20]} f5 {[%clk 00:37:22]} {[%emt 00:05:24]} 27. Nf2
{[%clk 00:57:37]} {[%emt 00:01:53]} Nxf2 {[%clk 00:37:38]} {[%emt 00:00:14]} 28.
Kxf2 {[%clk 00:58:04]} {[%emt 00:00:03]} Rd6 {[%clk 00:37:03]} {[%emt
00:01:06]} 29. Rae1 {[%clk 00:51:58]} {[%emt 00:06:36]} Kf6 {[%clk 00:29:52]}
{[%emt 00:07:40]} 30. Re5 {[%clk 00:49:55]} {[%emt 00:02:33]} h5 {[%clk
00:29:56]} {[%emt 00:00:25]} 31. h3 {[%clk 00:45:57]} {[%emt 00:04:29]} Rg8
{[%clk 00:29:09]} {[%emt 00:01:16]} 32. Kf3 {[%clk 00:46:09]} {[%emt 00:00:19]}
Re8 {[%clk 00:24:04]} {[%emt 00:05:35]} 33. Rc5 {[%clk 00:40:35]} {[%emt
00:06:04]} Rd3+ {[%clk 00:19:34]} {[%emt 00:05:00]} 34. Re3 {[%clk 00:40:38]}
{[%emt 00:00:28]} Rxe3+ {[%clk 00:19:49]} {[%emt 00:00:15]} 35. Kxe3 {[%clk
00:41:04]} {[%emt 00:00:03]} Rg8 {[%clk 00:20:09]} {[%emt 00:00:10]} 36. Kf3
{[%clk 00:38:44]} {[%emt 00:02:50]} Rd8 {[%clk 00:20:29]} {[%emt 00:00:09]} 37.
Rc6 {[%clk 00:27:17]} {[%emt 00:11:59]} Rd3+ {[%clk 00:20:16]} {[%emt
00:00:42]} 38. Kf2 {[%clk 00:27:42]} {[%emt 00:00:06]} Rd2+ {[%clk 00:14:14]}
{[%emt 00:06:31]} 39. Ke3 {[%clk 00:25:51]} {[%emt 00:02:21]} Rxb2 {[%clk
00:13:33]} {[%emt 00:01:11]} 40. Rxa6 {[%clk 00:26:02]} {[%emt 00:00:19]} h4
{[%clk 00:11:23]} {[%emt 00:02:39]} 41. gxh4 {[%clk 00:25:47]} {[%emt
00:00:46]} Rh2 {[%clk 00:10:56]} {[%emt 00:00:56]} 42. Kd4 {[%clk 00:25:16]}
{[%emt 00:01:02]} Rxh3 {[%clk 00:11:09]} {[%emt 00:00:16]} 43. Ra3 {[%clk
00:22:30]} {[%emt 00:03:17]} Rxh4 {[%clk 00:10:34]} {[%emt 00:01:04]} 44. Kc5
{[%clk 00:21:25]} {[%emt 00:01:36]} Rxf4 {[%clk 00:10:48]} {[%emt 00:00:16]} 45.
Kxb5 {[%clk 00:21:51]} {[%emt 00:00:03]} e5 {[%clk 00:07:10]} {[%emt 00:04:08]}
46. c4 {[%clk 00:18:47]} {[%emt 00:03:36]} e4 {[%clk 00:07:04]} {[%emt
00:00:35]} 47. c5 {[%clk 00:17:00]} {[%emt 00:02:17]} 1/2-1/2